bitfinex-derivatives/quotes_ETHF0:USTF0_20250116
["timestamp","ask_amount","ask_price","bid_price","bid_amount"]
[1737031202243,0.59568,3358.1,3358.0,0.59565]
[1737031202940,0.59568,3358.0,3357.9,3.2078]
[1737031203142,0.59568,3358.0,3357.5,2.36268713]
[1737031203143,0.59577,3357.5,3357.4,10.0]
[1737031203439,0.59577,3357.6,3357.5,0.59576]
[1737031203644,0.59577,3357.5,3357.4,10.0]
[1737031204038,0.59577,3357.5,3357.4,10.59579]
[1737031204340,3.80355,3357.7,3357.5,0.59577]
[1737031204638,0.59577,3357.5,3357.4,10.0]
[1737031205441,3.2078,3357.7,3357.4,10.0]
[1737031205639,3.80354,3357.7,3357.6,0.59575]
[1737031205836,3.2078,3357.7,3357.6,0.59575]
[1737031206439,5.12185149,3358.0,3357.5,0.4622]
[1737031206636,5.71753149,3358.0,3357.9,0.5957]
[1737031206837,0.4477,3358.0,3357.9,0.5957]
[1737031207637,0.4477,3358.0,3357.7,0.59572]
[1737031207943,0.4477,3358.0,3357.4,13.2078]
[1737031208140,1.04339,3358.0,3357.9,0.5957]
[1737031209239,0.59571,3357.9,3357.8,0.5957]
[1737031209439,0.59571,3357.9,3357.8,0.59571]
[1737031209937,0.4477,3358.0,3357.4,13.2078]
[1737031210445,0.59572,3357.8,3357.7,0.59573]
[1737031210643,0.59571,3357.9,3357.8,0.59571]
[1737031211035,0.4477,3358.0,3357.7,0.59573]
[1737031211242,0.59573,3357.8,3357.7,0.59573]
[1737031211640,0.5957,3357.9,3357.7,0.59572]
[1737031211948,0.59571,3357.9,3357.4,15.57048713]
[1737031212142,0.4477,3358.0,3357.4,15.57048713]
[1737031212540,0.59571,3357.9,3357.8,0.59571]
[1737031212849,0.4477,3358.0,3357.4,15.57048713]
[1737031213041,0.59572,3357.8,3357.4,15.57048713]
[1737031213238,0.4477,3358.0,3357.4,13.2078]
[1737031213447,0.59572,3357.8,3357.7,0.59572]
[1737031214046,0.4477,3358.0,3357.4,13.80358]
[1737031214047,0.59577,3357.5,3357.4,13.80358]
[1737031214241,0.4747,3357.7,3357.4,13.2078]
[1737031214447,0.59576,3357.6,3357.5,0.59576]
[1737031214747,0.4747,3357.7,3357.4,13.2078]
[1737031214748,0.59577,3357.5,3357.4,13.2078]
[1737031215045,0.59577,3357.5,3357.4,15.04359]
[1737031215641,0.59577,3357.5,3357.4,14.4478]
[1737031215946,0.59577,3357.5,3357.4,10.0]
[1737031218043,3.6825,3357.7,3357.4,10.0]
[1737031218253,4.27825,3357.7,3357.6,0.59575]
[1737031218544,0.59575,3357.6,3357.5,0.4513]
[1737031218949,6.04518713,3357.7,3357.4,10.0]
[1737031219141,1.06437,3357.5,3357.4,10.0]
[1737031220947,1.06437,3357.5,3357.4,10.59579]
[1737031221156,4.67415149,3357.6,3357.4,10.0]
[1737031221342,5.14885149,3357.7,3357.4,10.0]
[1737031221541,0.59577,3357.6,3357.5,1.08496]
[1737031222852,0.59577,3357.6,3357.5,0.4892]
[1737031223151,8.97377862,3358.0,3357.5,0.4892]
[1737031223152,5.12185149,3358.0,3357.5,0.4892]
[1737031223349,0.59572,3357.9,3357.8,0.59571]
[1737031223848,0.59573,3357.7,3357.6,1.24]
[1737031225158,0.59577,3357.5,3357.4,10.0]
[1737031226353,2.95845713,3357.5,3357.4,10.0]
[1737031228171,7.63260862,3357.5,3357.4,10.0]
[1737031229070,2.95845713,3357.5,3357.4,10.0]
[1737031229372,0.59577,3357.5,3357.4,10.0]
[1737031230469,2.95845713,3357.5,3357.4,10.0]
[1737031230866,0.59577,3357.5,3357.4,10.0]
[1737031231371,0.59577,3357.5,3357.4,10.59579]
[1737031231869,0.59577,3357.5,3357.4,10.0]
[1737031232371,1.08287,3357.5,3357.4,10.0]
[1737031234873,5.75702149,3357.5,3357.4,10.0]
[1737031237480,5.75702149,3357.5,3357.4,6.37067]
[1737031237481,10.75702149,3357.5,3357.4,6.37067]
[1737031237668,10.75702149,3357.5,3356.1,0.4525]
[1737031237669,10.16125149,3357.5,3356.1,0.4525]
[1737031237874,0.596,3356.2,3356.1,0.9257]
[1737031238678,0.596,3356.2,3356.1,0.4732]
[1737031244989,4.67049639,3356.5,3356.1,0.4732]
[1737031245186,0.596,3356.3,3356.2,0.59599]
[1737031245682,0.596,3356.2,3356.1,0.4732]
[1737031246483,1.0536,3356.2,3356.1,0.4732]
[1737031247890,0.59611,3355.6,3355.5,3.655]
[1737031248092,0.59611,3355.6,3355.5,2.00702]
[1737031248295,3.6654,3356.2,3355.5,1.4109]
[1737031248492,0.59611,3355.7,3355.6,0.59609]
[1737031248690,1.49006,3356.1,3355.5,1.4109]
[1737031248893,0.59611,3355.6,3355.5,2.00702]
[1737031249897,0.59611,3355.7,3355.6,0.59608]
[1737031250998,0.59607,3355.9,3355.8,0.59605]
[1737031251385,0.5961,3355.8,3355.7,0.59608]
[1737031251698,0.59611,3355.7,3355.6,0.5961]
[1737031252296,3.6654,3356.2,3355.5,6.98138713]
[1737031252598,0.59611,3355.6,3355.5,7.57748713]
[1737031254299,1.49007,3356.1,3355.5,6.98138713]
[1737031254494,0.5961,3355.7,3355.6,0.59609]
[1737031256396,0.59611,3355.6,3355.5,4.36969713]
[1737031256998,0.59611,3355.6,3355.5,2.00701]
[1737031257303,1.94762,3356.2,3355.5,1.4109]
[1737031257497,0.5961,3355.7,3355.6,0.59608]
[1737031258505,1.49002,3356.2,3355.5,3.77358713]
[1737031258707,1.49002,3356.2,3355.9,0.59604]
[1737031259002,0.59602,3356.1,3356.0,0.4481]
[1737031260100,1.08652,3356.1,3356.0,0.4481]
[1737031260304,0.59611,3355.6,3355.5,0.9262]
[1737031260613,0.59611,3355.6,3355.5,0.9677]
[1737031261803,0.59618,3355.2,3355.1,0.4716]
[1737031262000,0.59618,3355.2,3355.1,1.7116]
[1737031262303,0.59618,3355.2,3355.1,1.83619]
[1737031262497,3.2078,3355.5,3355.1,1.24]
[1737031262698,4.69797,3355.9,3355.1,4.4478]
[1737031262898,0.59612,3355.6,3355.5,0.5961]
[1737031264107,0.59609,3355.8,3355.7,0.59607]
[1737031265110,0.59606,3355.9,3355.8,0.59607]
[1737031265399,1.49002,3356.2,3355.5,5.57048713]
[1737031265603,0.59607,3355.9,3355.8,0.59606]
[1737031266102,0.59609,3355.8,3355.7,0.59607]
[1737031266999,0.59606,3355.9,3355.8,0.59604]
[1737031267404,0.59606,3356.0,3355.9,0.59603]
[1737031267904,0.5961,3355.7,3355.6,0.59611]
[1737031268401,0.5961,3355.7,3355.1,3.80399]
[1737031268402,0.59618,3355.2,3355.1,3.80399]
[1737031268603,4.69813,3355.5,3354.8,0.4751]
[1737031268908,0.59625,3354.8,3354.7,3.2078]
[1737031269104,0.59627,3354.7,3354.6,4.66105813]
[1737031269305,0.59627,3354.7,3354.6,5.25733813]
[1737031269497,0.59626,3354.8,3354.7,0.59625]
[1737031270007,4.67049639,3355.4,3354.7,1.49067]
[1737031270204,0.59617,3355.3,3355.2,0.59616]
[1737031270703,0.59617,3355.3,3355.2,1.06214618]
[1737031272006,0.59615,3355.4,3355.3,0.59615]
[1737031272614,2.82158713,3355.5,3355.3,0.46598618]
[1737031272804,2.95881713,3355.5,3355.4,0.59614]
[1737031273106,0.9704,3355.6,3355.3,0.46598618]
[1737031273311,0.9704,3355.6,3355.5,0.59612]
[1737031273509,1.56651,3355.6,3355.5,0.59612]
[1737031273704,0.9704,3355.6,3355.5,0.59612]
[1737031274009,0.9704,3355.6,3355.5,1.06210618]
[1737031274010,1.56651,3355.6,3355.5,1.06210618]
[1737031274699,1.56651,3355.6,3355.5,0.46598618]
[1737031275806,0.59625,3354.8,3354.7,3.80406]
[1737031277113,0.59629,3354.7,3354.6,0.59626]
[1737031277410,0.59626,3354.9,3354.8,0.59623]
[1737031277802,0.59627,3354.8,3354.7,0.59625]
[1737031278002,7.87829639,3355.2,3354.6,1.4907]
[1737031278310,8.47447639,3355.2,3355.1,0.5962]
[1737031278505,0.59622,3355.1,3355.0,0.59621]
[1737031279115,8.47449639,3355.2,3355.1,0.5962]
[1737031279416,7.87829639,3355.2,3354.7,3.2078]
[1737031279616,0.59621,3355.1,3355.0,0.5962]
[1737031279911,0.59625,3354.8,3354.7,5.04306]
[1737031280113,0.59625,3354.8,3354.7,4.4468]
[1737031280917,0.59625,3354.8,3354.7,5.04307]
[1737031281509,1.07932,3355.0,3354.9,0.59623]
[1737031281709,0.59625,3354.9,3354.8,0.59623]
[1737031281907,0.4831,3355.0,3354.5,0.4916]
[1737031282107,4.67049639,3355.2,3354.9,3.2078]
[1737031282409,4.67049639,3355.2,3355.1,2.95888713]
[1737031282608,0.89809639,3355.2,3355.1,9.19788713]
[1737031282812,0.89809639,3355.4,3355.1,8.60168713]
[1737031283017,0.89809639,3355.4,3355.3,3.80396]
[1737031283213,5.83812049,3355.6,3355.5,0.59612]
[1737031283407,5.83812049,3355.6,3355.5,2.95880713]
[1737031283614,5.83812049,3355.6,3355.5,4.19780713]
[1737031284012,3.2078,3356.2,3355.5,4.19780713]
[1737031284315,1.08829,3356.3,3356.2,0.596]
[1737031284316,0.4923,3356.3,3356.2,0.596]
[1737031284710,1.08828,3356.3,3356.2,0.596]
[1737031284916,0.4923,3356.3,3356.2,0.596]
[1737031285426,0.4923,3356.3,3356.1,0.59601]
[1737031285632,5.83812049,3356.5,3356.1,2.36268713]
[1737031285924,5.83812049,3356.5,3356.4,0.59596]
[1737031286119,5.83812049,3356.5,3356.4,1.83496]
[1737031286312,5.83812049,3356.5,3356.4,1.239]
[1737031286512,5.83812049,3356.5,3356.4,1.83496]
[1737031286718,0.59594,3356.6,3356.4,1.83496]
[1737031287127,0.59594,3356.6,3356.5,0.59595]
[1737031287523,0.59593,3356.6,3356.4,1.83495]
[1737031287825,0.59595,3356.5,3356.4,1.83495]
[1737031288027,0.59595,3356.5,3356.4,2.30071796]
[1737031288720,3.80372,3356.7,3356.6,0.59593]
[1737031289215,3.2078,3356.7,3356.6,0.59593]
[1737031289620,3.2078,3356.7,3356.6,1.06169796]
[1737031290325,10.10025049,3357.2,3356.6,0.46576796]
[1737031290529,0.59586,3357.0,3356.7,0.59591]
[1737031290723,0.59586,3357.0,3356.6,0.92196796]
[1737031290926,3.6663,3357.2,3356.8,0.46576796]
[1737031291226,5.83812049,3357.3,3357.0,2.36268713]
[1737031291426,5.83812049,3357.3,3357.2,0.59582]
[1737031291620,5.83812049,3357.3,3357.2,1.83482]
[1737031291828,5.83812049,3357.3,3357.2,2.30058796]
[1737031292133,11.0300654,3357.8,3357.2,2.30058796]
[1737031292134,6.31412049,3357.8,3357.2,1.70476796]
[1737031292322,5.83812049,3357.8,3357.3,2.7052416]
[1737031292629,0.59577,3357.5,3357.4,0.80832243]
[1737031293024,0.59576,3357.6,3357.4,1.40411243]
[1737031293225,0.59576,3357.6,3357.4,1.06155796]
[1737031293430,0.59575,3357.6,3357.4,0.46576796]
[1737031293633,0.476,3357.9,3357.4,0.46576796]
[1737031293831,0.476,3357.9,3357.2,1.239]
[1737031293832,0.5958,3357.3,3357.2,1.239]
[1737031294032,3.2078,3357.5,3357.2,0.34230717]
[1737031294231,0.5958,3357.3,3357.2,1.70464635]
[1737031294829,0.5958,3357.4,3357.2,2.30045635]
[1737031295030,3.2078,3357.5,3357.2,1.70464635]
[1737031295331,0.5958,3357.4,3357.2,2.30046635]
[1737031295526,0.5958,3357.4,3357.3,0.46564635]
[1737031295929,3.2078,3357.5,3357.4,0.59579]
[1737031296136,0.476,3357.9,3357.8,0.59572]
[1737031297028,1.07889,3358.0,3357.8,0.59572]
[1737031297424,1.07889,3358.0,3357.5,0.4806]
[1737031297732,0.59567,3358.1,3357.7,2.36268713]
[1737031298036,3.2078,3358.3,3357.7,2.36268713]
[1737031298228,3.2078,3358.3,3358.0,2.36268713]
[1737031298429,3.2078,3358.3,3358.1,1.239]
[1737031299129,0.475,3358.5,3358.1,1.239]
[1737031299839,0.59561,3358.4,3358.3,2.36268713]
[1737031300039,0.59564,3358.2,3358.1,1.7196]
[1737031301136,0.59558,3358.6,3358.3,0.59561]
[1737031301338,0.59558,3358.6,3358.5,2.36268713]
[1737031301933,0.59558,3358.6,3358.5,2.82768617]
[1737031302337,0.59558,3358.6,3358.5,2.36268713]
[1737031306639,1.96796,3359.1,3358.5,2.36268713]
[1737031306945,0.59557,3358.6,3358.5,2.36268713]
[1737031307441,0.59557,3358.6,3358.5,2.95827713]
[1737031307640,0.59557,3358.6,3358.5,2.36268713]
[1737031307844,0.59557,3358.6,3358.5,2.95827713]
[1737031308339,0.59557,3358.6,3358.5,2.36268713]
[1737031308644,0.59557,3358.6,3358.5,2.82740239]
[1737031310334,0.59557,3358.6,3358.5,3.42299239]
[1737031310741,0.59557,3358.6,3358.5,1.06030526]
[1737031310940,0.59557,3358.6,3358.5,0.46471526]
[1737031312141,3.6939,3358.8,3358.0,1.238]
[1737031312438,3.2078,3358.3,3357.7,2.36268713]
[1737031312643,1.56495,3358.2,3358.1,0.46556892]
[1737031314137,0.59579,3357.4,3357.3,40.8]
[1737031314341,0.59579,3357.4,3357.3,0.34199335]
[1737031314938,0.59584,3357.1,3357.0,40.8]
[1737031315137,0.59584,3357.1,3357.0,41.14208813]
[1737031315844,0.59584,3357.1,3357.0,41.14227733]
[1737031317947,0.59584,3357.1,3357.0,41.73813733]
[1737031318150,0.59584,3357.1,3357.0,41.14227733]
[1737031319149,0.4665,3357.3,3357.0,41.14227733]
[1737031319355,0.59579,3357.4,3357.3,0.5958]
[1737031319648,4.69712,3357.8,3357.3,1.26907733]
[1737031319841,0.59577,3357.5,3357.4,0.34227733]
[1737031320252,0.59577,3357.5,3357.4,41.14227733]
[1737031320654,0.59577,3357.5,3357.4,0.34227733]
[1737031321754,1.48948,3357.4,3356.3,5.57048713]
[1737031321956,0.59595,3356.5,3356.4,1.238]
[1737031322256,0.59595,3356.5,3356.4,1.83397]
[1737031322444,1.48975,3356.8,3356.4,1.238]
[1737031322649,0.59595,3356.5,3356.4,1.238]
[1737031322857,0.59595,3356.5,3356.4,1.83397]
[1737031323553,0.59595,3356.5,3356.4,1.238]
[1737031323943,0.59595,3356.5,3356.4,1.83397]
[1737031324349,0.59595,3356.6,3356.5,0.59594]
[1737031324551,3.2078,3356.9,3356.4,4.4458]
[1737031324750,3.80368,3356.9,3356.8,2.95858713]
[1737031325054,0.59582,3357.3,3357.2,0.59582]
[1737031325245,3.6703,3357.5,3357.3,0.5958]
[1737031325246,0.59581,3357.4,3357.3,0.5958]
[1737031325554,3.80358,3357.5,3357.4,0.59579]
[1737031325756,0.5958,3357.4,3357.3,0.5958]
[1737031326354,0.59578,3357.5,3357.4,0.59578]
[1737031326951,0.59578,3357.5,3357.4,1.05927792]
[1737031327256,0.59578,3357.5,3357.4,0.46349792]
[1737031327559,0.59578,3357.5,3357.4,1.05928792]
[1737031327763,0.59578,3357.5,3357.4,0.46349792]
[1737031328459,0.4835,3357.8,3357.4,0.46349792]
[1737031328654,0.4835,3357.8,3357.5,0.46349792]
[1737031328962,3.2078,3357.9,3357.8,0.59572]
[1737031329160,1.48898,3358.6,3357.8,2.36268713]
[1737031329161,3.6582,3358.4,3357.8,2.36268713]
[1737031329366,0.59567,3358.1,3358.0,0.59567]
[1737031329661,0.59567,3358.1,3358.0,1.238]
[1737031330165,0.59567,3358.1,3358.0,1.70149792]
[1737031331361,0.59567,3358.1,3358.0,0.46349792]
[1737031331759,0.59577,3357.5,3357.4,1.238]
[1737031331955,3.2078,3357.7,3357.4,1.238]
[1737031332156,3.2078,3357.7,3357.5,2.36268713]
[1737031332351,3.2078,3357.7,3357.6,0.59575]
[1737031332562,0.59569,3358.0,3357.9,0.59568]
[1737031333060,0.59569,3358.0,3357.8,0.59571]
[1737031333061,0.59568,3358.0,3357.8,0.59571]
[1737031333255,0.59568,3358.0,3357.9,0.4594]
[1737031333463,0.59568,3358.0,3357.9,0.92300795]
[1737031333760,0.59568,3358.0,3357.9,1.37190795]
[1737031334555,0.59568,3358.0,3357.9,0.91250795]
[1737031335457,0.59568,3358.0,3357.9,0.46360795]
[1737031335659,3.44606713,3358.0,3357.9,0.46360795]
[1737031335962,0.59582,3357.2,3357.1,1.238]
[1737031339159,0.59582,3357.2,3357.1,1.83384]
[1737031339361,0.59582,3357.2,3357.1,1.238]
[1737031339560,0.59582,3357.2,3357.1,1.83384]
[1737031339764,0.59582,3357.3,3357.2,0.59581]
[1737031339963,0.59582,3357.3,3357.2,1.06121]
[1737031340663,0.59579,3357.4,3357.3,0.59579]
[1737031340864,3.2078,3357.5,3357.2,0.9576]
[1737031341059,0.59581,3357.3,3357.2,0.9576]
[1737031341258,0.59581,3357.3,3357.2,1.55342]
[1737031341457,0.59581,3357.3,3357.2,0.9576]
[1737031341870,0.59581,3357.3,3357.2,0.4654]
[1737031343063,0.59591,3356.7,3356.6,0.59593]
[1737031343267,1.48966,3357.0,3356.6,0.464]
[1737031343467,0.59591,3356.7,3356.6,0.464]
[1737031343770,0.59593,3356.6,3356.5,1.237]
[1737031343976,3.2078,3356.7,3356.4,0.4618]
[1737031344266,0.59595,3356.5,3356.4,0.4618]
[1737031345464,0.59595,3356.5,3354.8,9.19760614]
[1737031345465,2.36268713,3356.5,3355.5,3.2078]
[1737031345666,0.59611,3355.6,3355.4,0.92]
[1737031345861,3.2078,3356.3,3355.4,3.28268713]
[1737031346058,3.2078,3356.3,3355.7,2.36268713]
[1737031346564,3.2078,3356.3,3355.8,1.237]
[1737031346767,3.2078,3356.3,3355.8,1.7169]
[1737031347075,0.596,3356.2,3355.8,1.7169]
[1737031347365,3.2078,3356.3,3355.8,1.7169]
[1737031347566,0.59603,3356.1,3355.8,1.7169]
[1737031347971,0.59603,3356.1,3355.8,2.31296]
[1737031348273,3.2078,3356.3,3355.8,2.31296]
[1737031348467,0.59604,3356.1,3355.8,1.7169]
[1737031348662,3.2078,3356.3,3355.8,1.7169]
[1737031348663,0.596,3356.2,3355.8,1.7169]
[1737031348864,3.2078,3356.3,3355.8,1.7169]
[1737031349158,0.59605,3356.0,3355.8,1.7169]
[1737031349765,3.2078,3356.3,3355.8,1.7169]
[1737031350066,0.59592,3356.7,3356.4,0.59596]
[1737031350369,5.0824592,3356.9,3356.5,1.07225]
[1737031350370,0.5959,3356.8,3356.5,1.07225]
[1737031350568,0.59592,3356.7,3356.5,1.56095]
[1737031350769,0.59592,3356.7,3356.6,40.8]
[1737031350977,0.59593,3356.6,3356.5,1.4353]
[1737031351164,0.59593,3356.7,3356.5,1.4353]
[1737031351360,0.59593,3356.6,3356.5,1.4353]
[1737031351662,3.2078,3356.7,3356.1,3.2078]
[1737031351871,0.596,3356.2,3356.1,3.2078]
[1737031352071,0.596,3356.2,3356.1,5.57048713]
[1737031354264,0.596,3356.2,3356.1,3.2078]
[1737031355967,3.2078,3356.2,3355.5,40.8]
[1737031356166,1.4901,3356.0,3354.9,3.2078]
[1737031356360,3.2078,3355.7,3355.0,0.5962]
[1737031356572,0.59617,3355.3,3355.1,42.63419]
[1737031356774,0.59617,3355.3,3355.1,1.83419]
[1737031357069,3.2078,3355.7,3355.1,1.83419]
[1737031357070,0.59616,3355.4,3355.2,2.95886713]
[1737031357372,0.59616,3355.4,3355.2,2.95885713]
[1737031357572,0.59613,3355.5,3355.3,0.59616]
[1737031357773,0.59613,3355.5,3355.4,0.4614]
[1737031358568,0.59612,3355.5,3355.4,0.4614]
[1737031359774,0.59616,3355.3,3355.2,2.36268713]
[1737031359974,0.4605,3355.4,3355.2,1.238]
[1737031360267,0.59621,3355.0,3354.9,3.6692]
[1737031360472,0.59621,3355.0,3354.9,4.9072]
[1737031360869,0.59621,3355.0,3354.9,3.6692]
[1737031361073,0.59621,3355.0,3354.9,2.29563]
[1737031361272,0.59621,3355.0,3354.9,0.4614]
[1737031361576,0.59621,3355.0,3354.9,1.05763]
[1737031361875,0.59618,3355.2,3355.1,0.59619]
[1737031362074,3.80397,3355.3,3355.2,0.59618]
[1737031362273,0.59617,3355.3,3355.2,0.59618]
[1737031362975,0.59618,3355.2,3355.1,2.95886713]
[1737031364079,0.59618,3355.2,3355.1,2.95888713]
[1737031364282,0.5962,3355.1,3355.0,0.5962]
[1737031364580,0.59621,3355.0,3354.9,2.29562]
[1737031365077,0.59621,3355.0,3354.9,1.238]
[1737031365274,1.97594,3355.3,3354.6,3.80408]
[1737031365472,0.449,3354.9,3354.7,1.238]
[1737031365665,0.59625,3354.8,3354.7,1.238]
[1737031366267,0.59627,3354.7,3354.6,3.80408]
[1737031366473,0.59627,3354.7,3354.6,3.2078]
[1737031366685,0.59627,3354.7,3354.6,3.80408]
[1737031367177,0.59627,3354.7,3354.6,3.2078]
[1737031367585,0.59627,3354.7,3354.6,3.80408]
[1737031367879,0.59627,3354.7,3354.6,3.2078]
[1737031368179,0.449,3354.9,3354.4,0.4881]
[1737031368367,0.449,3354.9,3354.4,1.08441]
[1737031368569,0.59629,3354.6,3354.5,2.95897713]
[1737031368984,0.59629,3354.6,3354.5,2.36268713]
[1737031369481,0.59629,3354.6,3354.5,2.95898713]
[1737031370080,0.59629,3354.6,3354.5,2.36268713]
[1737031371780,0.59634,3354.3,3354.2,7.40484713]
[1737031372583,0.59636,3354.2,3354.1,1.83437]
[1737031372781,0.4525,3354.5,3354.0,0.4765]
[1737031373086,0.59637,3354.1,3354.0,0.4765]
[1737031373279,1.49083,3354.4,3353.9,3.60068713]
[1737031373582,0.59639,3354.0,3353.9,4.19708713]
[1737031373977,0.59639,3354.0,3353.9,2.95908713]
[1737031374383,0.59639,3354.0,3353.9,2.95909713]
[1737031374780,0.59639,3354.0,3353.9,2.36268713]
[1737031375285,0.59641,3353.9,3353.8,5.50272]
[1737031375481,0.59641,3353.9,3353.8,3.80423]
[1737031375678,3.6634,3354.2,3353.6,2.82458713]
[1737031375885,0.59644,3353.8,3353.7,0.59643]
[1737031376081,0.59644,3353.7,3353.6,0.4619]
[1737031376382,0.59648,3353.5,3353.4,3.2078]
[1737031380082,0.4573,3353.5,3352.8,47.30508713]
[1737031380282,0.59659,3353.0,3352.9,0.59658]
[1737031380480,0.59659,3352.9,3352.8,4.73899]
[1737031381085,0.59658,3353.0,3352.9,0.59656]
[1737031381685,0.59656,3353.1,3353.0,0.59655]
[1737031381883,0.59656,3353.1,3353.0,41.39655]
[1737031382078,3.2078,3353.3,3353.0,43.16268713]
[1737031382287,0.59649,3353.6,3353.5,0.59647]
[1737031382582,0.59645,3353.7,3353.6,0.59644]
[1737031382882,3.2078,3354.1,3353.7,0.59643]
[1737031382883,0.59644,3353.8,3353.7,0.59643]
[1737031383082,3.2078,3354.1,3353.6,2.36268713]
[1737031383282,0.59644,3353.9,3353.8,0.59641]
[1737031383479,3.2078,3354.1,3353.4,0.9297]
[1737031383680,0.59646,3353.7,3353.6,0.59644]
[1737031385390,0.59643,3353.9,3353.8,0.59641]
[1737031385792,3.80418,3354.1,3354.0,0.59639]
[1737031386086,0.59644,3353.8,3353.7,0.59643]
[1737031386294,3.2078,3354.1,3353.5,1.238]
[1737031386591,0.59646,3353.6,3353.5,1.83447]
[1737031388084,0.4843,3353.8,3353.5,1.238]
[1737031388392,0.59646,3353.7,3353.6,0.59644]
[1737031389186,4.69877,3354.1,3353.7,0.59643]
[1737031389187,0.59645,3353.8,3353.7,0.59643]
[1737031390188,0.59646,3353.7,3353.6,0.59645]
[1737031390382,0.59645,3353.8,3353.7,0.59642]
[1737031390682,0.59642,3353.9,3353.8,0.5964]
[1737031390890,0.5964,3354.0,3353.9,0.59639]
[1737031391085,3.2078,3354.1,3354.0,0.59639]
[1737031391495,3.80417,3354.1,3354.0,0.59639]
[1737031392292,3.2078,3354.1,3354.0,0.59639]
[1737031392495,3.80411,3354.5,3354.4,0.59632]
[1737031392688,0.59631,3354.5,3354.4,0.59632]
[1737031392895,0.59634,3354.4,3354.3,0.59632]
[1737031393091,0.59634,3354.3,3354.2,2.00675]
[1737031393287,0.59634,3354.3,3354.2,0.9252]
[1737031393497,0.59634,3354.3,3354.2,1.52156]
[1737031393792,0.59634,3354.3,3354.2,0.4544]
[1737031394395,0.59634,3354.3,3354.2,1.05076]
[1737031394599,0.59634,3354.3,3354.2,0.4544]
[1737031394791,0.59634,3354.3,3354.2,1.05076]
[1737031395094,0.59634,3354.3,3354.2,0.4544]
[1737031395399,0.59639,3354.0,3353.9,0.4708]
[1737031395796,0.59639,3354.0,3353.9,1.41939078]
[1737031396302,0.59639,3354.0,3353.9,0.35218078]
[1737031396598,0.59643,3353.8,3353.7,1.83444]
[1737031396895,0.59643,3353.8,3353.7,2.18672097]
[1737031397696,0.59643,3353.8,3353.7,0.94872097]
[1737031397891,0.59643,3353.8,3353.7,0.35228097]
[1737031399301,4.69878,3354.1,3353.5,1.07318]
[1737031399302,0.59646,3353.6,3353.5,1.07318]
[1737031399498,0.59646,3353.6,3353.5,0.82931342]
[1737031400899,0.59646,3353.6,3353.5,1.42579342]
[1737031401298,0.59646,3353.6,3353.5,0.82931342]
[1737031401499,3.2078,3353.7,3353.3,3.6955]
[1737031401799,0.5965,3353.4,3353.3,3.2078]
[1737031402000,0.5965,3353.4,3353.3,3.56063827]
[1737031402405,0.5965,3353.4,3353.3,0.35283827]
[1737031406500,0.5965,3353.4,3353.3,3.3120454]
[1737031406706,0.5965,3353.4,3353.3,3.31217846]
[1737031407105,0.5965,3353.4,3353.3,3.31217636]
[1737031407795,0.5965,3353.4,3353.3,3.31217797]
[1737031408608,3.2078,3353.7,3353.3,2.71566539]
[1737031408910,0.59648,3353.5,3353.4,1.42285826]
[1737031409399,0.59648,3353.5,3353.4,0.82637826]
[1737031409605,0.59648,3353.5,3353.4,1.42287826]
[1737031409802,0.59648,3353.5,3353.4,0.82637826]
[1737031411504,0.59648,3353.5,3353.4,1.42287826]
[1737031412508,0.59648,3353.5,3353.4,0.82654116]
[1737031413413,0.59648,3353.5,3353.4,1.42304116]
[1737031414212,0.59648,3353.5,3353.4,0.82654116]
[1737031414504,0.59648,3353.5,3353.4,1.42304116]
[1737031415311,0.59648,3353.5,3353.4,0.82654116]
[1737031415499,0.59648,3353.5,3353.4,1.42304116]
[1737031415905,0.59648,3353.5,3353.4,0.35314116]
[1737031416106,5.2286392,3353.5,3353.4,0.35314116]
[1737031418005,4.6321592,3353.5,3353.4,3.31232829]
[1737031418713,4.6321592,3353.5,3353.4,44.11232829]
[1737031418903,4.6321592,3353.5,3353.4,3.31232829]
[1737031419709,0.59648,3353.6,3353.5,0.59645]
[1737031420011,0.59648,3353.6,3353.5,1.42199116]
[1737031421314,4.6321592,3353.8,3353.5,0.82554116]
[1737031421609,0.59645,3353.7,3353.6,0.94958116]
[1737031421907,5.2285992,3353.8,3353.7,0.59644]
[1737031422107,0.59644,3353.8,3353.7,0.94952203]
[1737031423104,5.2840962,3353.8,3353.7,0.35308203]
[1737031423509,5.2840962,3353.8,3353.7,0.94952203]
[1737031424112,0.59644,3353.8,3353.7,0.94952203]
[1737031424914,0.59644,3353.8,3353.7,3.31220916]
[1737031426319,0.59644,3353.8,3353.7,0.35308203]
[1737031426619,5.28351437,3353.8,3353.7,0.35308203]
[1737031427618,5.28350437,3353.8,3353.7,0.35330182]
[1737031427821,0.59643,3353.8,3353.7,0.35330182]
[1737031428314,0.59643,3353.8,3353.2,0.4672]
[1737031428315,0.59652,3353.3,3353.2,0.4672]
[1737031428614,0.59652,3353.3,3353.2,0.35333484]
[1737031428615,3.80432,3353.3,3353.2,0.35333484]
[1737031430415,3.2078,3353.3,3353.0,2.36268713]
[1737031430609,3.2078,3353.3,3353.1,0.85215622]
[1737031430610,0.59653,3353.2,3353.1,0.85215622]
[1737031430812,0.59653,3353.2,3353.1,1.91100622]
[1737031431012,0.59653,3353.2,3353.1,1.31445622]
[1737031432015,0.59653,3353.2,3353.1,0.35325622]
[1737031433520,6.45479433,3353.2,3353.1,0.35325622]
[1737031434222,7.37739433,3353.2,3353.1,0.35325622]
[1737031435324,0.59662,3352.7,3352.6,0.955]
[1737031435525,0.59662,3352.7,3352.6,1.30813105]
[1737031436526,0.59662,3352.7,3352.6,0.84583105]
[1737031437525,0.59662,3352.7,3352.6,1.44247105]